fUST/lending_fUST_20250905
["ID","MTS","AMOUNT","RATE_DAILY","PERIOD"]
[383609192,1757029847110,-1133.00674658,0.00019718,2]
[383609193,1757029847119,-500.0,0.00019718,2]
[383609194,1757029847129,-500.0,0.00019718,2]
[383609195,1757029847139,-500.0,0.00019718,2]
[383609196,1757029847148,-501.89628986,0.00019718,2]
[383609197,1757029847160,-178.515,0.0001977,2]
[383609198,1757029847169,-648.0,0.000198,2]
[383609199,1757029847179,-5708.17846557,0.00019847,2]
[383609200,1757029847189,-10798.07098338,0.000199,2]
[383609201,1757029847199,-560.0,0.00019907,2]
[383609202,1757029847208,-480.0,0.00019927,2]
[383609203,1757029847217,-480.0,0.00019928,2]
[383609204,1757029847228,-480.0,0.00019929,2]
[383609205,1757029847237,-480.0,0.00019929,2]
[383609206,1757029847247,-522.95,0.00019929,2]
[383609207,1757029847256,-4805.67,0.00019929,2]
[383609208,1757029847265,-567.27,0.00019929,2]
[383609209,1757029847275,-486.02,0.00019929,2]
[383609210,1757029847284,-160.0,0.00019944,3]
[383609211,1757029847293,-303.8632618,0.0002,2]
[383609212,1757029847303,-4000.0,0.0002,4]
[383609213,1757029847312,-617.532836,0.00020187,2]
[383609214,1757029847323,-480.0,0.00020202,2]
[383609215,1757029847333,-480.0,0.00020203,2]
[383609216,1757029847343,-480.0,0.00020203,2]
[383609217,1757029847352,-522.95,0.00020203,2]
[383609218,1757029847362,-4805.67,0.00020203,2]
[383609219,1757029847372,-567.27,0.00020203,2]
[383609220,1757029847382,-486.02,0.00020203,2]
[383609221,1757029847393,-823.0,0.00020236,2]
[383609222,1757029847403,-882.07256116,0.00020309,2]
[383609223,1757029847412,-37448.38071886,0.00020309,2]
[383609224,1757029847466,-3950.1057626,0.00020309,2]
[383609225,1757029847478,-16433.09065569,0.00020309,2]
[383609226,1757029847493,-1072.81722564,0.00020309,2]
[383609227,1757029847510,-480.0,0.00015544,2]
[383609228,1757029847520,-3941.2679081,0.00020309,2]
[383609236,1757030246491,210.99176297,0.00013562,2]
[383609237,1757030276535,259.14,0.00023,30]
[383609238,1757030277753,586.968152,0.00013562,2]
[383609240,1757030551077,200.0,0.00024277,120]
[383609241,1757030642145,192.48975565,0.00013341,2]
[383609242,1757030671752,200.0,0.00025475,120]
[383609243,1757030732535,200.0,0.00025603,120]
[383609244,1757030791815,200.0,0.0002487,120]
[383609245,1757030826121,-586.968152,0.00013699,2]
[383609246,1757030826143,-179.498,0.00014387,2]
[383609247,1757030826163,-233.31363905,0.00015342,2]
[383609248,1757030842121,-300.94877315,0.00015342,2]
[383609249,1757030842143,-337.83108282,0.00015344,2]
[383609250,1757030852110,-169.27952251,0.00015344,2]
[383609251,1757030911330,200.0,0.00026757,120]
[383609256,1757031032593,-1654.57002116,0.00015342,2]
[383609257,1757031032632,-255.08980272,0.00015342,2]
[383609259,1757031032642,-50.77823212,0.00015372,2]
[383609261,1757031032654,-249.22176788,0.00015372,2]
[383609264,1757031032663,-300.0,0.00015372,2]
[383609265,1757031032673,-300.0,0.00015372,2]
[383609267,1757031032682,-300.0,0.00015372,2]
[383609269,1757031032691,-300.0,0.00015372,2]
[383609271,1757031032701,-1200.0,0.00015372,2]
[383609273,1757031032710,-10567.6827771,0.00015373,2]
[383609274,1757031032719,-1200.0,0.00015386,2]
[383609275,1757031032728,-751.48,0.00015434,3]
[383609276,1757031032737,-385.18,0.00015434,3]
[383609277,1757031032747,-563.58180412,0.0001544,2]
[383609278,1757031032756,-480.0,0.0001544,2]
[383609279,1757031032765,-480.0,0.0001544,2]
[383609280,1757031032774,-480.0,0.0001544,2]
[383609281,1757031032784,-4818.87,0.0001544,2]
[383609282,1757031032793,-480.0,0.0001544,2]
[383609283,1757031032802,-182.98184564,0.0001544,2]
[383609347,1757031043653,-297.01815436,0.0001544,2]
[383609348,1757031043662,-2.98184564,0.0001544,2]
[383609349,1757031043674,-477.01815436,0.0001544,2]
[383609350,1757031043683,-480.0,0.0001544,2]
[383609351,1757031043693,-480.0,0.0001544,2]
[383609352,1757031043702,-480.0,0.0001544,2]
[383609353,1757031043712,-169.93430516,0.0001544,2]
[383609354,1757031043721,-500.0,0.0001544,2]
[383609355,1757031043732,-500.0,0.0001544,2]
[383609356,1757031043742,-285.22879877,0.0001544,2]
[383609357,1757031043752,-367.41102091,0.0001544,2]
[383609358,1757031043761,-634.97881626,0.0001544,2]
[383609359,1757031043771,-500.0,0.0001544,2]
[383609360,1757031043782,-238.82249457,0.0001544,2]
[383609361,1757031043791,-500.0,0.0001544,2]
[383609362,1757031043801,-500.0,0.0001544,2]
[383609363,1757031043811,-500.0,0.0001544,2]
[383609364,1757031043820,-500.0,0.0001544,2]
[383609365,1757031043830,-500.0,0.0001544,2]
[383609367,1757031043840,-500.0,0.0001544,2]
[383609368,1757031043849,-480.0,0.00015441,2]
[383609369,1757031043860,-163.15,0.00015441,2]
[383609370,1757031043869,-480.0,0.00015441,2]
[383609371,1757031043879,-480.0,0.00015441,2]
[383609372,1757031043888,-480.0,0.00015441,2]
[383609373,1757031043897,-480.0,0.00015441,2]
[383609374,1757031043907,-480.0,0.00015441,2]
[383609375,1757031043916,-480.0,0.00015441,2]
[383609376,1757031043926,-480.0,0.00015441,2]
[383609377,1757031043936,-480.0,0.00015441,2]
[383609378,1757031043946,-480.0,0.00015441,2]
[383609379,1757031043956,-480.0,0.00015441,2]
[383609380,1757031043965,-480.0,0.00015441,2]
[383609381,1757031043977,-480.0,0.00015441,2]
[383609382,1757031043987,-480.0,0.00015441,2]
[383609383,1757031043996,-480.0,0.00015441,2]
[383609384,1757031044009,-480.0,0.00015441,2]
[383609385,1757031044019,-3604.26,0.00015441,2]
[383609386,1757031044029,-480.0,0.00015441,2]
[383609387,1757031044039,-480.0,0.00015441,2]
[383609388,1757031044050,-480.0,0.00015441,2]
[383609389,1757031044060,-480.0,0.00015441,2]
[383609390,1757031044070,-262.43223694,0.00015441,2]
[383609391,1757031044080,-500.0,0.00015441,2]
[383609392,1757031044091,-500.0,0.00015441,2]
[383609393,1757031044100,-500.0,0.00015441,2]
[383609394,1757031044110,-500.0,0.00015441,2]
[383609395,1757031044120,-500.0,0.00015441,2]
[383609396,1757031044130,-500.0,0.00015441,2]
[383609397,1757031044140,-500.0,0.00015441,2]
[383609398,1757031044149,-500.0,0.00015441,2]
[383609399,1757031044159,-500.0,0.00015441,2]
[383609400,1757031044169,-500.0,0.00015441,2]
[383609401,1757031044179,-516.06645779,0.00015441,2]
[383609402,1757031044188,-516.06645779,0.00015441,2]
[383609403,1757031044198,-516.06645779,0.00015441,2]
[383609404,1757031044208,-516.06645779,0.00015441,2]
[383609405,1757031044217,-516.06645779,0.00015441,2]
[383609406,1757031044228,-516.06645779,0.00015441,2]
[383609407,1757031044239,-516.06645779,0.00015441,2]
[383609408,1757031044248,-516.06645779,0.00015441,2]
[383609409,1757031044258,-516.06645779,0.00015441,2]
[383609410,1757031044267,-500.0,0.00015441,2]
[383609411,1757031044276,-495.81680422,0.00015441,2]
[383609412,1757031044286,-500.0,0.00015441,2]
[383609413,1757031044296,-500.0,0.00015441,2]
[383609414,1757031044306,-500.0,0.00015441,2]
[383609415,1757031044316,-500.0,0.00015441,2]
[383609416,1757031044326,-500.0,0.00015441,2]
[383609417,1757031044336,-500.0,0.00015441,2]
[383609418,1757031044346,-417.69099722,0.00015442,2]
[383609419,1757031044355,-480.0,0.00015442,2]
[383609420,1757031044365,-533.27541289,0.00015442,2]
[383609421,1757031044374,-480.0,0.00015442,2]
[383609422,1757031044384,-542.34676921,0.00015442,2]
[383609423,1757031044394,-480.0,0.00015442,2]
[383609424,1757031044403,-480.0,0.00015442,2]
[383609425,1757031044413,-480.0,0.00015442,2]
[383609426,1757031044423,-152.18,0.00015442,2]
[383609427,1757031044432,-480.0,0.00015442,2]
[383609428,1757031044442,-480.0,0.00015442,2]
[383609429,1757031044451,-480.0,0.00015442,2]
[383609430,1757031044462,-480.0,0.00015442,2]
[383609431,1757031044480,-230.31,0.00015442,2]
[383609432,1757031044490,-480.0,0.00015442,2]
[383609433,1757031044500,-480.0,0.00015442,2]
[383609434,1757031044512,-480.0,0.00015442,2]
[383609435,1757031044522,-480.0,0.00015442,2]
[383609436,1757031044531,-480.0,0.00015442,2]
[383609437,1757031044541,-480.0,0.00015442,2]
[383609438,1757031044551,-480.0,0.00015442,2]
[383609439,1757031044560,-480.0,0.00015442,2]
[383609440,1757031044570,-480.0,0.00015442,2]
[383609441,1757031044579,-480.0,0.00015442,2]
[383609442,1757031044589,-49641.82,0.00015442,2]
[383609443,1757031044599,-480.0,0.00015442,2]
[383609444,1757031044608,-520.0165151,0.00015442,2]
[383609445,1757031044618,-480.0,0.00015442,2]
[383609446,1757031044627,-480.0,0.00015442,2]
[383609447,1757031044637,-480.0,0.00015442,2]
[383609448,1757031044647,-480.0,0.00015442,2]
[383609449,1757031044657,-480.0,0.00015442,2]
[383609450,1757031044666,-480.0,0.00015442,2]
[383609451,1757031044675,-480.0,0.00015442,2]
[383609452,1757031044685,-480.0,0.00015442,2]
[383609453,1757031044695,-480.0,0.00015442,2]
[383609454,1757031044704,-500.0,0.00015442,2]
[383609455,1757031044714,-554.467478,0.00015442,2]
[383609456,1757031044723,-500.0,0.00015443,2]
[383609457,1757031044733,-343.78262941,0.00015443,2]
[383609458,1757031044742,-38817.64538588,0.00015444,2]
[383609459,1757031044752,-533.54,0.00015533,3]
[383609460,1757031044762,-266.77,0.00015533,3]
[383609461,1757031044772,-800.31,0.00015533,3]
[383609462,1757031044782,-480.0,0.00015544,2]
[383609463,1757031044791,-1909.65982386,0.00015707,2]
[383609464,1757031044801,-480.0,0.00015714,2]
[383609465,1757031044811,-480.0,0.00015714,2]
[383609466,1757031044820,-4818.87,0.00015714,2]
[383609467,1757031044830,-603.31964346,0.00015714,2]
[383609468,1757031044840,-480.0,0.00015714,2]
[383609469,1757031044849,-480.0,0.00015714,2]
[383609470,1757031044859,-480.0,0.00015714,2]
[383609471,1757031044868,-480.0,0.00015714,2]
[383609472,1757031044878,-480.0,0.00015715,2]
[383609473,1757031044888,-480.0,0.00015715,2]
[383609474,1757031044898,-3604.26,0.00015715,2]
[383609475,1757031044908,-480.0,0.00015715,2]
[383609476,1757031044917,-480.0,0.00015715,2]
[383609477,1757031044927,-480.0,0.00015715,2]
[383609478,1757031044937,-480.0,0.00015715,2]
[383609479,1757031044947,-480.0,0.00015716,2]
[383609480,1757031044956,-338.22708933,0.00015716,2]
[383609481,1757031044966,-49641.82,0.00015716,2]
[383609482,1757031044976,-480.0,0.00015716,2]
[383609483,1757031044986,-480.0,0.00015716,2]
[383609484,1757031044995,-480.0,0.00015716,2]
[383609485,1757031045005,-480.0,0.00015716,2]
[383609486,1757031045015,-207.153874,0.00015818,2]
[383609487,1757031045025,-151.0,0.00015818,2]
[383609488,1757031045035,-239.591236,0.00015818,2]
[383609489,1757031045044,-1902.72615519,0.0001589,2]
[383609490,1757031045054,-480.0,0.00015988,2]
[383609491,1757031045063,-480.0,0.00015988,2]
[383609492,1757031045074,-4818.87,0.00015988,2]
[383609493,1757031045089,-480.0,0.00015988,2]
[383609494,1757031045103,-480.0,0.00015988,2]
[383609495,1757031045114,-480.0,0.00015988,2]
[383609496,1757031045124,-395.6423415,0.00015988,2]
[383609497,1757031045133,-480.0,0.00015989,2]
[383609498,1757031045143,-480.0,0.00015989,2]
[383609499,1757031045153,-3604.26,0.00015989,2]
[383609500,1757031045163,-480.0,0.00015989,2]
[383609501,1757031045172,-480.0,0.00015989,2]
[383609502,1757031045182,-480.0,0.00015989,2]
[383609503,1757031045192,-480.0,0.00015989,2]
[383609504,1757031045202,-49641.82,0.0001599,2]
[383609505,1757031045211,-480.0,0.0001599,2]
[383609506,1757031045221,-480.0,0.0001599,2]
[383609507,1757031045231,-151.0,0.0001599,2]
[383609508,1757031045240,-151.0,0.0001599,2]
[383609509,1757031045250,-480.0,0.0001599,2]
[383609510,1757031045261,-480.0,0.0001599,2]
[383609511,1757031045270,-232.93421481,0.00016042,2]
[383609512,1757031045280,-160.0,0.00016042,2]
[383609513,1757031045290,-530.40833076,0.00016042,2]
[383609514,1757031045299,-846.4110323,0.00016042,2]
[383609515,1757031045308,-217.5338025,0.00016042,2]
[383609516,1757031045318,-417.15472785,0.00016042,2]
[383609517,1757031045327,-1909.65982386,0.00016073,2]
[383609518,1757031045337,-480.0,0.00016262,2]
[383609519,1757031045347,-480.0,0.00016262,2]
[383609520,1757031045356,-4818.87,0.00016262,2]
[383609521,1757031045366,-480.0,0.00016262,2]
[383609522,1757031045375,-480.0,0.00016262,2]
[383609523,1757031045385,-151.0,0.00016262,2]
[383609524,1757031045395,-480.0,0.00016262,2]
[383609525,1757031045404,-480.0,0.00016263,2]
[383609526,1757031045414,-480.0,0.00016263,2]
[383609527,1757031045424,-3604.26,0.00016263,2]
[383609528,1757031045433,-480.0,0.00016263,2]
[383609529,1757031045443,-480.0,0.00016263,2]
[383609530,1757031045453,-480.0,0.00016263,2]
[383609531,1757031045463,-480.0,0.00016263,2]
[383609532,1757031045473,-49641.82,0.00016264,2]
[383609533,1757031045483,-480.0,0.00016264,2]
[383609534,1757031045492,-480.0,0.00016264,2]
[383609535,1757031045502,-480.0,0.00016264,2]
[383609536,1757031045511,-480.0,0.00016264,2]
[383609537,1757031045521,-151.0,0.00016265,2]
[383609538,1757031045531,-1909.65982386,0.00016438,2]
[383609539,1757031045540,-188.10297854,0.00016438,2]
[383609540,1757031045550,-480.0,0.00016536,2]
[383609541,1757031045559,-480.0,0.00016536,2]
[383609542,1757031045569,-4818.87,0.00016536,2]
[383609543,1757031045579,-480.0,0.00016536,2]
[383609544,1757031045588,-480.0,0.00016536,2]
[383609545,1757031045598,-480.0,0.00016536,2]
[383609546,1757031045607,-480.0,0.00016537,2]
[383609547,1757031045617,-480.0,0.00016537,2]
[383609548,1757031045626,-3604.26,0.00016537,2]
[383609549,1757031045635,-480.0,0.00016537,2]
[383609550,1757031045645,-480.0,0.00016537,2]
[383609551,1757031045655,-480.0,0.00016537,2]
[383609552,1757031045664,-480.0,0.00016537,2]
[383609553,1757031045673,-49641.82,0.00016538,2]
[383609554,1757031045683,-480.0,0.00016538,2]
[383609555,1757031045693,-353.13,0.00016538,2]
[383609556,1757031045703,-480.0,0.00016538,2]
[383609557,1757031045712,-480.0,0.00016538,2]
[383609558,1757031045721,-264.645396,0.00016538,2]
[383609559,1757031045731,-500.0,0.00016624,2]
[383609560,1757031045740,-500.0,0.00016631,2]
[383609561,1757031045750,-151.0,0.00016639,2]
[383609562,1757031045759,-500.0,0.00016655,2]
[383609563,1757031045769,-500.0,0.00016734,2]
[383609564,1757031045778,-500.0,0.00016734,2]
[383609565,1757031045788,-500.0,0.00016734,2]
[383609566,1757031045797,-1909.65982386,0.00016803,2]
[383609567,1757031045807,-492.2,0.0001681,2]
[383609568,1757031045816,-480.0,0.0001681,2]
[383609569,1757031045826,-4818.87,0.0001681,2]
[383609570,1757031045835,-480.0,0.0001681,2]
[383609571,1757031045845,-480.0,0.0001681,2]
[383609572,1757031045855,-480.0,0.0001681,2]
[383609573,1757031045864,-480.0,0.00016811,2]
[383609574,1757031045874,-307.18,0.00016811,2]
[383609575,1757031045884,-3604.26,0.00016811,2]
[383609576,1757031045893,-480.0,0.00016811,2]
[383609577,1757031045902,-480.0,0.00016811,2]
[383609578,1757031045912,-480.0,0.00016811,2]
[383609579,1757031045922,-480.0,0.00016811,2]
[383609580,1757031045931,-24333.55157523,0.00016812,2]
[383609582,1757031045945,-25308.26842477,0.00016812,2]
[383609583,1757031045955,-480.0,0.00016812,2]
[383609584,1757031045965,-480.0,0.00016812,2]
[383609585,1757031045975,-480.0,0.00016812,2]
[383609586,1757031045984,-420.0,0.00016818,2]
[383609587,1757031045994,-1067.08,0.00016903,3]
[383609588,1757031046003,-533.54,0.00016903,3]
[383609589,1757031046019,-283.0,0.00016954,2]
[383609590,1757031046028,-480.0,0.00017084,2]
[383609591,1757031046038,-4818.87,0.00017084,2]
[383609592,1757031046048,-480.0,0.00017084,2]
[383609593,1757031046057,-480.0,0.00017084,2]
[383609594,1757031046067,-480.0,0.00017084,2]
[383609595,1757031046076,-480.0,0.00017085,2]
[383609596,1757031046086,-3604.26,0.00017085,2]
[383609597,1757031046095,-480.0,0.00017085,2]
[383609598,1757031046106,-233.34416102,0.00017085,2]
[383609612,1757031049352,-246.65583898,0.00017085,2]
[383609613,1757031049362,-480.0,0.00017085,2]
[383609614,1757031049372,-480.0,0.00017085,2]
[383609615,1757031049382,-49641.82,0.00017086,2]
[383609616,1757031049391,-480.0,0.00017086,2]
[383609617,1757031049400,-480.0,0.00017086,2]
[383609618,1757031049410,-480.0,0.00017086,2]
[383609619,1757031049420,-367.0,0.00017096,2]
[383609620,1757031049430,-160.0,0.00017119,2]
[383609621,1757031049439,-1000.0,0.00017172,2]
[383609622,1757031049448,-151.0,0.00017174,2]
[383609623,1757031049458,-292.0,0.0001719,2]
[383609624,1757031049467,-500.0,0.0001719,2]
[383609625,1757031049479,-617.49000262,0.00017203,2]
[383609626,1757031049489,-1000.0,0.00017282,2]
[383609627,1757031049498,-1000.0,0.00017282,2]
[383609628,1757031049508,-500.0,0.00017339,2]
[383609629,1757031049518,-480.0,0.00017358,2]
[383609630,1757031049527,-4818.87,0.00017358,2]
[383609631,1757031049537,-585.94,0.00017358,2]
[383609632,1757031049546,-480.0,0.00017358,2]
[383609633,1757031049555,-480.0,0.00017358,2]
[383609634,1757031049566,-480.0,0.00017359,2]
[383609635,1757031049576,-3604.26,0.00017359,2]
[383609636,1757031049586,-480.0,0.00017359,2]
[383609637,1757031049597,-480.0,0.00017359,2]
[383609638,1757031049607,-480.0,0.00017359,2]
[383609639,1757031049616,-480.0,0.00017359,2]
[383609640,1757031049626,-49641.82,0.0001736,2]
[383609641,1757031049637,-480.0,0.0001736,2]
[383609642,1757031049648,-480.0,0.0001736,2]
[383609643,1757031049658,-480.0,0.0001736,2]
[383609644,1757031049668,-151.0,0.00017461,2]
[383609645,1757031049678,-500.0,0.00017464,2]
[383609646,1757031049688,-480.0,0.00017632,2]
[383609647,1757031049698,-4818.87,0.00017632,2]
[383609648,1757031049708,-480.0,0.00017632,2]
[383609649,1757031049719,-480.0,0.00017632,2]
[383609650,1757031049731,-480.0,0.00017633,2]
[383609651,1757031049741,-3604.26,0.00017633,2]
[383609652,1757031049751,-215.21094915,0.00017633,2]
[383609653,1757031049761,-480.0,0.00017633,2]
[383609654,1757031049771,-188.86,0.00017633,2]
[383609655,1757031049780,-480.0,0.00017633,2]
[383609656,1757031049790,-49641.82,0.00017634,2]
[383609657,1757031049908,-480.0,0.00017634,2]
[383609658,1757031049919,-350.784,0.00017634,2]
[383609659,1757031049929,-480.0,0.00017634,2]
[383609660,1757031049939,-260.0,0.00017667,2]
[383609661,1757031049948,-1500.0,0.0001772,2]
[383609662,1757031049960,-500.0,0.00017738,2]
[383609663,1757031049970,-1500.0,0.0001783,2]
[383609664,1757031049981,-1500.0,0.0001783,2]
[383609665,1757031049991,-321.16,0.00017906,2]
[383609666,1757031050001,-4818.87,0.00017906,2]
[383609667,1757031050014,-480.0,0.00017906,2]
[383609668,1757031050025,-480.0,0.00017906,2]
[383609669,1757031050035,-480.0,0.00017907,2]
[383609670,1757031050045,-3604.26,0.00017907,2]
[383609671,1757031050055,-480.0,0.00017907,2]
[383609672,1757031050065,-480.0,0.00017907,2]
[383609673,1757031050075,-49641.82,0.00017908,2]
[383609674,1757031050085,-480.0,0.00017908,2]
[383609675,1757031050096,-480.0,0.00017908,2]
[383609676,1757031050106,-500.0,0.00018012,2]
[383609677,1757031050115,-4818.87,0.0001818,2]
[383609678,1757031050125,-302.59,0.0001818,2]
[383609679,1757031050134,-480.0,0.0001818,2]
[383609680,1757031050144,-480.0,0.00018181,2]
[383609681,1757031050153,-3604.26,0.00018181,2]
[383609682,1757031050163,-480.0,0.00018181,2]
[383609683,1757031050172,-480.0,0.00018181,2]
[383609684,1757031050182,-1323.10884173,0.00018182,2]
[383609685,1757031050191,-49641.82,0.00018182,2]
[383609686,1757031050201,-480.0,0.00018182,2]
[383609687,1757031050211,-480.0,0.00018182,2]
[383609688,1757031050221,-500.0,0.00018206,2]
[383609689,1757031050232,-360.0,0.00018215,2]
[383609690,1757031050242,-914.66697941,0.00018268,2]
[383609691,1757031050251,-500.0,0.00018286,2]
[383609692,1757031050261,-2000.0,0.00018378,2]
[383609693,1757031050271,-2000.0,0.00018378,2]
[383609694,1757031050281,-587.0,0.00018399,2]
[383609695,1757031050295,-4818.87,0.00018454,2]
[383609696,1757031050305,-480.0,0.00018455,2]
[383609697,1757031050315,-3604.26,0.00018455,2]
[383609698,1757031050326,-480.0,0.00018455,2]
[383609699,1757031050335,-480.0,0.00018455,2]
[383609700,1757031050345,-49641.82,0.00018456,2]
[383609701,1757031050355,-480.0,0.00018456,2]
[383609702,1757031050365,-480.0,0.00018456,2]
[383609703,1757031050374,-28339.57942594,0.00018457,2]
[383609704,1757031050384,-500.0,0.0001856,2]
[383609705,1757031050394,-1902.72615519,0.00018645,2]
[383609706,1757031050405,-4818.87,0.00018728,2]
[383609707,1757031050414,-480.0,0.00018729,2]
[383609708,1757031050423,-3604.26,0.00018729,2]
[383609709,1757031050434,-480.0,0.00018729,2]
[383609710,1757031050444,-480.0,0.00018729,2]
[383609711,1757031050453,-49641.82,0.0001873,2]
[383609712,1757031050463,-480.0,0.0001873,2]
[383609713,1757031050472,-480.0,0.0001873,2]
[383609714,1757031050483,-460.0,0.00018763,2]
[383609715,1757031050492,-500.0,0.00018834,2]
[383609716,1757031050502,-2500.0,0.00018926,2]
[383609717,1757031050511,-2500.0,0.00018926,2]
[383609718,1757031050520,-183.7261356,0.00018986,2]
[383609719,1757031050530,-4818.87,0.00019002,2]
[383609720,1757031050540,-480.0,0.00019003,2]
[383609721,1757031050551,-3604.26,0.00019003,2]
[383609722,1757031050560,-480.0,0.00019003,2]
[383609723,1757031050569,-480.0,0.00019003,2]
[383609724,1757031050579,-49641.82,0.00019004,2]
[383609725,1757031050588,-480.0,0.00019004,2]
[383609726,1757031050598,-480.0,0.00019004,2]
[383609727,1757031050607,-4026.0,0.00019081,2]
[383609728,1757031050617,-500.0,0.00019108,2]
[383609729,1757031050626,-250.0,0.00019135,2]
[383609730,1757031050636,-4818.87,0.00019276,2]
[383609731,1757031050645,-480.0,0.00019277,2]
[383609732,1757031050654,-3604.26,0.00019277,2]
[383609733,1757031050664,-480.0,0.00019277,2]
[383609734,1757031050674,-480.0,0.00019277,2]
[383609735,1757031050684,-49641.82,0.00019278,2]
[383609736,1757031050693,-480.0,0.00019278,2]
[383609737,1757031050703,-480.0,0.00019278,2]
[383609738,1757031050713,-560.0,0.00019311,2]
[383609739,1757031050722,-529.33191851,0.00019382,2]
[383609740,1757031050733,-388.3851953,0.00019397,2]
[383609741,1757031050742,-388.3851953,0.00019397,2]
[383609742,1757031050751,-447.92558966,0.00019406,2]
[383609743,1757031050761,-1050.46260552,0.00019474,2]
[383609744,1757031050770,-3000.0,0.00019474,2]
[383609745,1757031050779,-178.515,0.00019496,2]
[383609746,1757031050789,-2900.0,0.0001952,2]
[383609747,1757031050799,-4818.87,0.0001955,2]
[383609748,1757031050809,-182.57,0.00019551,2]
[383609749,1757031050820,-3604.26,0.00019551,2]
[383609750,1757031050830,-480.0,0.00019551,2]
[383609751,1757031050840,-480.0,0.00019551,2]
[383609752,1757031050849,-49641.82,0.00019552,2]
[383609753,1757031050859,-480.0,0.00019552,2]
[383609754,1757031050868,-480.0,0.00019552,2]
[383609755,1757031050877,-975.0,0.00019597,2]
[383609756,1757031050887,-633.0,0.00019597,2]
[383609757,1757031050896,-2153.0,0.00019597,2]
[383609758,1757031050906,-4818.87,0.00019824,2]
[383609759,1757031050916,-3604.26,0.00019825,2]
[383609760,1757031050926,-480.0,0.00019825,2]
[383609761,1757031050935,-480.0,0.00019825,2]
[383609762,1757031050944,-49641.82,0.00019826,2]
[383609763,1757031050953,-532.34751909,0.00019826,2]
[383609764,1757031050963,-480.0,0.00019826,2]
[383609765,1757031050972,-660.0,0.00019858,2]
[383609766,1757031050982,-10448.57645334,0.000199,2]
[383609767,1757031050991,-194.72792767,0.00019937,2]
[383609768,1757031051000,-4000.0,0.0002,4]
[383609769,1757031051010,-2000.0,0.00020022,2]
[383609770,1757031051019,-7040.8789337,0.00020041,2]
[383609771,1757031051028,-4818.87,0.00020098,2]
[383609772,1757031051038,-3604.26,0.00020099,2]
[383609773,1757031051047,-480.0,0.00020099,2]
[383609774,1757031051057,-588.52387676,0.00020099,2]
[383609775,1757031051066,-49641.82,0.000201,2]
[383609776,1757031051076,-480.0,0.000201,2]
[383609777,1757031051086,-150000.0,0.00020101,2]
[383609778,1757031051095,-104441.83862277,0.00020101,2]
[383609779,1757031051105,-30279.1908662,0.0002011,2]
[383609780,1757031051114,-3737.012225,0.0002011,2]
[383609781,1757031051123,-14484.354885,0.0002011,2]
[383609782,1757031051133,-823.0,0.00020129,2]
[383609783,1757031051143,-388.3851953,0.00020164,2]
[383609784,1757031051156,-388.3851953,0.00020164,2]
[383609785,1757031051167,-388.3851953,0.00020164,2]
[383609786,1757031051176,-366.25448348,0.00020168,2]
[383609787,1757031051185,-1465.01793392,0.00020168,2]
[383609788,1757031051195,-3292.99406097,0.00020168,2]
[383609789,1757031051204,-247.21287135,0.00020168,2]